Cogmind - Beta 13 @@@ ROGUE MODE // 2024.04.08 @ 22:16:14 Player: Fractal Result: Destroyed by G-47 Trooper with Particle Gun Performance ------------- Evolutions (2) 1000 Regions Visited (3) 600 Robots Destroyed (65) 325 Value Destroyed (1832) 1832 Prototype IDs (5) 100 Alien Tech Used (0) 0 Bonus (0) 0 TOTAL SCORE: 3857 Bonus ------- None Cogmind --------- Core Integrity 0/550 Matter 182/300 Energy 100/100 System Corruption 2% Temperature Cool (9) Movement Treading (240) Ox1 Location -8/Materials Parts ------- > --- POWER (1) -------- (None) > --- PROPULSION (3) --- Light Treads > --- UTILITY (5) ------ Large Storage Unit Advanced Visual Processing Unit > --- WEAPON (2) ------- Heavy Laser Chainsword > --- INVENTORY (15) --- Medium Storage Unit Sensor Array Terrain Scan Processor Shock Rifle Beam Rifle Particle Gun Heavy Particle Cannon Heavy Particle Cannon Heavy Assault Rifle Heavy Assault Rifle Assault Cannon Improved Grenade Launcher Peak State ------------ > --- POWER ------------ Improved Ion Engine > --- PROPULSION ------- Wheel Wheel Subdweller Monowheel > --- UTILITY ---------- Medium Storage Unit Structural Scanner Visual Processing Unit Improved Sensor Array Improved Light Armor Plating > --- WEAPON ----------- Advanced Beam Rifle Flak Cannon > --- INVENTORY -------- Subdweller Monowheel Large Storage Unit Sensor Array Terrain Scan Processor Shock Rifle Particle Gun Heavy Assault Rifle Assault Cannon Missile Launcher Heavy Flail [Rating: 25] Favorites ----------- Power Ion Engine Engine Ion Engine Power Core Light Nuclear Core Propulsion Aluminum Leg Treads Light Treads Leg Aluminum Leg Wheel Wheel Utility Medium Storage Unit Device Sensor Array Storage Medium Storage Unit Processor Visual Processing Unit Protection Light Armor Plating Weapon EM Shotgun Energy Gun EM Shotgun Ballistic Gun Heavy Assault Rifle Ballistic Cannon Flak Cannon Launcher Subdweller Shrapnel Launcher Special Weapon Mining Laser Impact Weapon Heavy Flail Slashing Weapon Chainsword Build | -11 -10 -10 -8 ------- Run | Yrd Mat Sub Mat Slots Evolved 4 | . . . 4 Power . | . . . . Propulsion 1 | . . . 1 Utility 3 | . . . 3 Weapon . | . . . . Parts Attached 82 | 7 17 13 45 Power 6 | 1 1 . 4 Engine 5 | 1 1 . 3 Core 1 | . . . 1 Reactor . | . . . . Propulsion 18 | 2 5 2 9 Treads 3 | . . . 3 Leg 9 | 2 5 2 . Wheel 6 | . . . 6 Hover . | . . . . Flight . | . . . . Utility 22 | 2 1 5 14 Device 7 | 1 . 2 4 Storage 6 | 1 1 2 2 Processor 3 | . . . 3 Hackware . | . . . . Protection 6 | . . 1 5 Artifact . | . . . . Weapon 36 | 2 10 6 18 Energy Gun 13 | 1 5 2 5 Energy Cannon . | . . . . Ballistic Gun 9 | 1 2 1 5 Ballistic Cannon 4 | . . . 4 Launcher 4 | . 1 2 1 Special Weapon 3 | . 2 1 . Impact Weapon 1 | . . . 1 Slashing Weapon 2 | . . . 2 Piercing Weapon . | . . . . Special Melee Weapon . | . . . . Unidentified Prototypes 1 | . . . 1 Parts Lost 25 | . . 3 22 Power 2 | . . . 2 Propulsion 7 | . . . 7 Utility 7 | . . 1 6 Weapon 9 | . . 2 7 Highest Loss Streak 11 | . . 1 11 To Critical Strikes . | . . . . Average Slot Usage (%) 92 | . 100 99 79 Engine 11 | . 14 14 6 Treads 2 | . . . 5 Leg 18 | . 28 28 2 Wheel 3 | . . . 10 Device 12 | . 14 13 11 Storage 12 | . 14 13 9 Processor 2 | . . . 6 Protection 3 | . . . 9 Energy Gun 12 | . 13 17 7 Ballistic Gun 6 | . 12 . 7 Launcher 3 | . . 9 1 Naked Turns . | . . . . Heaviest Build 42 | 14 22 27 42 Greatest Support 60 | 20 20 20 60 Greatest Overweight (x) 11 | . 1 1 11 Average Overweight (x) . | . . . . Largest Inventory Capacity 15 | 8 10 10 15 Average Capacity 9 | 7 8 9 10 Most Carried 13 | 3 10 10 13 Average Carried 8 | 1 7 8 9 Final Capacity 15 | 8 10 10 15 Final Carried 12 | 3 10 8 12 Class Distribution -------------------- 66% | Scavenger-Mutant 33% | Mutant Dominant Class ---------------- Mutant | -10/Materials Scavenger-Mutant | -10/Subcaves Scavenger-Mutant | -8/Materials Resources | -11 -10 -10 -8 ----------- Run | Yrd Mat Sub Mat Matter Collected 1661 | 268 367 170 856 Remotely . | . . . . Salvage Created 1962 | 70 735 191 966 Parts 130 | 7 53 8 62 Haulers Intercepted . | . . . . Recyclers Shooed . | . . . . Parts Field Recycled . | . . . . Retrieved Matter . | . . . . Parts Self-Destructed . | . . . . Prevented . | . . . . Kills | -11 -10 -10 -8 ------- Run | Yrd Mat Sub Mat Combat Hostiles Destroyed 46 | . 17 5 24 Melee 3 | . . . 3 Guns 29 | . 16 . 13 Cannons 6 | . . . 6 AOE 7 | . 1 4 2 Classes Destroyed 14 | 2 5 1 6 Builder 4 | . 1 . 3 Tunneler 3 | 1 1 . 1 Recycler 2 | 1 . . 1 Mechanic 1 | . . . 1 Operator 3 | . 2 . 1 Watcher 6 | . 2 . 4 Swarmer 13 | . 3 . 10 Grunt 19 | . 14 . 5 Brawler 1 | . . . 1 Duelist 1 | . . . 1 Sentry 5 | . . . 5 Hunter 1 | . . . 1 Heavy 1 | . . . 1 Subdweller 5 | . . 5 . Best Kill Streak 8 | 2 3 4 8 Combat Bots Only 4 | . 3 4 4 Max Kills in Single Turn 3 | 1 2 3 3 Gunslinging . | . . . . Exploded 3 | . 1 3 1 Melee 1 | . . . 1 Uniques/NPCs Destroyed . | . . . . Combat | -11 -10 -10 -8 -------- Run | Yrd Mat Sub Mat Hostile Shots Fired 271 | . 81 12 178 Missed 65 | . 24 3 38 Damage Taken 3900 | . 634 466 2800 Core 749 | . 151 48 550 Absorbed by Shields . | . . . . Core Remaining (%) 60 | 100 . 20 . Volleys Fired 175 | 4 68 18 85 Largest 2 | 2 2 2 2 Hottest 110 | 60 110 85 105 Shots Fired 298 | 8 122 19 149 Gun 243 | 8 111 12 112 Cannon 25 | . . . 25 Launcher 21 | . 2 7 12 Special 9 | . 9 . . Kinetic 153 | 4 49 1 99 Thermal 88 | 4 50 . 34 Explosive 12 | . 2 6 4 Electromagnetic 45 | . 21 12 12 Robot Hit Streak 17 | 3 13 4 17 Robot Miss Streak 7 | 1 4 2 7 Penetration Max . | . . . . Secondary Targets 2 | . 2 . . Max Gunslinging Chain 1 | . 1 . . Shots Hit Robots 203 | 5 74 12 112 Core Hits 126 | 3 40 9 74 Critical Kills . | . . . . Critical Parts Destroyed . | . . . . Critical Strikes 3 | . . . 3 Burn 3 | . . . 3 Melee Attacks 28 | . . . 28 Impact 10 | . . . 10 Slashing 18 | . . . 18 Piercing . | . . . . Sneak Attacks 1 | . . . 1 Combat Hostiles . | . . . . Follow-up Attacks . | . . . . Damage Inflicted 4354 | 56 1099 381 2818 Guns 2366 | 56 985 129 1196 Cannons 444 | . . . 444 Explosions 1118 | . 114 252 752 Melee 421 | . . . 421 Ramming 5 | . . . 5 Kinetic 2043 | 23 465 . 1555 Thermal 708 | 33 275 . 400 Explosive 672 | . 114 252 306 Electromagnetic 505 | . 245 129 131 Impact . | . . . . Slashing 421 | . . . 421 Piercing . | . . . . Highest Corruption 2 | . . . 2 Average Corruption 2 | . . . 2 Corruption Purged . | . . . . Corruption Blocked . | . . . . Effects 13 | . . . 13 Message Errors 2 | . . . 2 Matter Fused 6 | . . . 6 Heat Flow Errors 2 | . . . 2 Data Loss (minor) 2 | . . . 2 Misfires 1 | . . . 1 Overload Shots . | . . . . Overflow Damage 160 | . . 48 112 Projectiles . | . . . . Explosions 90 | . . 48 42 Melee 70 | . . . 70 Knockbacks 11 | . . . 11 Impact . | . . . . Kinetic 10 | . . . 10 Secondary 1 | . . . 1 Self-Inflicted Damage 173 | . . 98 75 Shots 5 | . . 3 2 Rammed . | . . . . Targets Rammed 3 | . . . 3 Kicked 3 | . . . 3 Crushed . | . . . . Highest Temperature 442 | . 213 . 442 Average Temperature 64 | . 44 . 82 Received Heat Transfer 885 | . 309 . 576 Siege Activations . | . . . . Robots Corrupted 1 | . . 1 . Combat Hostiles 1 | . . 1 . Parts Fried 2 | . . 2 . Impact Corruptions . | . . . . Robots Melted . | . . . . Combat Hostiles . | . . . . Parts Melted 1 | . . . 1 Heat Transferred 1662 | 75 625 . 962 Parts Sabotaged . | . . . . Parts Stolen . | . . . . Parts Stripped . | . . . . Power Chain Reactions . | . . . . Alert | -11 -10 -10 -8 ------- Run | Yrd Mat Sub Mat Peak Influence 377 | 10 187 . 377 Initial 6 | . 6 . . Average 150 | 5 109 . 192 Maximum Alert Level 1 | . 1 . 1 Low Security (%) 79 | 100 99 . 62 Level 1 20 | . . . 37 Level 2 . | . . . . Level 3 . | . . . . Level 4 . | . . . . Level 5 . | . . . . High Security . | . . . . Max Security . | . . . . Squads Dispatched 6 | . 5 . 1 Investigation 2 | . 2 . . Extermination . | . . . . Reinforcement 4 | . 3 . 1 Assault . | . . . . Garrison . | . . . . Intercept . | . . . . Searches Triggered . | . . . . Construction Impeded . | . . . . Haulers Reinforced . | . . . . Active Scanning Responses . | . . . . Cargo Convoy Interrupts . | . . . . Stealth | -11 -10 -10 -8 --------- Run | Yrd Mat Sub Mat Distress Signals 3 | . 2 . 1 Communications Jammed . | . . . . Distress Signals . | . . . . Times Spotted 76 | . 30 5 41 Peak Tracking Total 6 | . 4 3 6 Tactical Retreats 3 | . 1 . 2 Traps | -11 -10 -10 -8 ------- Run | Yrd Mat Sub Mat Traps Triggered 4 | . 1 . 3 Indirectly . | . . . . Trap Hack Attempts . | . . . . Triggered . | . . . . Disarmed . | . . . . Reprogrammed . | . . . . Reused . | . . . . Traps Extracted . | . . . . Installed . | . . . . Triggered . | . . . . Machines | -11 -10 -10 -8 ---------- Run | Yrd Mat Sub Mat Machines Disabled 8 | . . . 8 Max in Single Turn 2 | . . . 2 Machines Repaired . | . . . . Machines Dismantled . | . . . . Machines Sabotaged . | . . . . Overloaded Fab Kills . | . . . . Hacking | -11 -10 -10 -8 --------- Run | Yrd Mat Sub Mat Machines Accessed 8 | . 4 1 3 Terminals 7 | . 4 . 3 Fabricators . | . . . . Repair Stations . | . . . . Recycling Units . | . . . . Scanalyzers . | . . . . Garrison Access . | . . . . Total Hacks 23 | . 12 2 9 Successful 11 | . 4 2 5 Failed 12 | . 8 . 4 Catastrophic 3 | . 2 . 1 Database Lockouts . | . . . . Manual 17 | . 8 1 8 Terminals 21 | . 12 . 9 Fabricators . | . . . . Repair Stations . | . . . . Recycling Units . | . . . . Scanalyzers . | . . . . Garrison Access . | . . . . Terminal Hacks 11 | . 4 2 5 Record 3 | . . 2 1 Prototype ID Bank 2 | . 1 . 1 Terminal Index 2 | . 1 . 1 Alert Level 2 | . 2 . . Unreport Threat 1 | . . . 1 Hauler Manifests 1 | . . . 1 Fabricator Hacks . | . . . . Repair Station Hacks . | . . . . Recycling Unit Hacks . | . . . . Scanalyzer . | . . . . Garrison Access Hacks . | . . . . Unauthorized Hacks . | . . . . Terminals . | . . . . Fabricators . | . . . . Repair Stations . | . . . . Recycling Units . | . . . . Scanalyzers . | . . . . Garrison Access . | . . . . Data Cores Recovered . | . . . . Used . | . . . . Hacking Detections 6 | . 4 . 2 Full Trace Events 2 | . 2 . . Feedback Events . | . . . . Feedback Blocked . | . . . . Robot Schematics Acquired . | . . . . Robots Built . | . . . . Authchips . | . . . . Time . | . . . . Total Robot Build Rating . | . . . . Part Schematics Acquired . | . . . . Parts Built . | . . . . Authchips . | . . . . Time . | . . . . Total Part Build Rating . | . . . . Parts Repaired . | . . . . Time . | . . . . Parts Recycled . | . . . . Recycled Matter . | . . . . Retrieved Matter . | . . . . Retrieved Components . | . . . . Parts Scanalyzed . | . . . . Part Schematics Acquired . | . . . . Parts Damaged . | . . . . Bothacking | -11 -10 -10 -8 ------------ Run | Yrd Mat Sub Mat Used RIF Installer . | . . . . Robots Hacked . | . . . . Non-combat . | . . . . Combat . | . . . . Robot Hacks Applied . | . . . . Relay Couplers Released . | . . . . Fabnet Peak Effective % . | . . . . Robots Rewired . | . . . . Allies Hacked . | . . . . Hacks Repelled . | . . . . Allies | -11 -10 -10 -8 -------- Run | Yrd Mat Sub Mat Total Allies . | . . . . Largest Group . | . . . . Highest-Rated Group . | . . . . Highest-Rated Ally . | . . . . Total Orders . | . . . . Ally Attacks . | . . . . Total Damage . | . . . . Kills . | . . . . Allies Corrupted . | . . . . Allies Melted . | . . . . Intel | -11 -10 -10 -8 ------- Run | Yrd Mat Sub Mat Robot Analysis Total . | . . . . Derelict Logs Recovered . | . . . . Drone Launches . | . . . . Drone Recoveries . | . . . . Exploration | -11 -10 -10 -8 ------------- Run | Yrd Mat Sub Mat Turns Passed 5136 | 122 1490 1637 1887 Spaces Moved 2632 | 82 741 796 1013 Core 39 | 3 . . 36 Treads 208 | . . . 208 Legs 1731 | 79 741 796 115 Wheels 654 | . . . 654 Hover . | . . . . Flight . | . . . . Fastest Speed 50 | 50 120 120 80 Average Speed 149 | 117 134 184 135 Slowest Speed 600 | 120 190 190 600 Overloaded Moves . | . . . . Propulsion Burnouts . | . . . . Robots Hopped . | . . . . Cave-ins Triggered . | . . . . Exploration Rate (%) 46 | 4 87 33 61 Regions Visited 3 Branch Regions 1 Pre-discovered Areas . | . . . . Known Exits Taken . | . . . . Unknown Exits Taken 3 | 1 1 1 . Scrap Searched 1 | . . 1 . Spaces Dug 20 | . 4 7 9 Terrain Destroyed 231 | . 13 59 159 Melee 9 | . . . 9 Projectile 4 | . 4 . . AOE 218 | . 9 59 150 Terrain Rammed . | . . . . Walls Destroyed . | . . . . Machines Disabled . | . . . . Actions | -11 -10 -10 -8 --------- Run | Yrd Mat Sub Mat Total 3465 | 97 1098 943 1327 Wait 467 | . 252 104 111 Move 2629 | 81 740 795 1013 Hop . | . . . . Pick Up 38 | 5 9 4 20 Fast Attach 31 | 5 2 3 21 Attach 15 | 2 . 3 10 Detach 6 | . 1 2 3 Swap 36 | . 15 7 14 Drop 37 | . 11 7 19 Fire 175 | 4 68 18 85 Melee 28 | . . . 28 Ram . | . . . . Kick 3 | . . . 3 Crush . | . . . . Escape Stasis . | . . . . Rewire . | . . . . Trap . | . . . . Miscellaneous . | . . . . Route ------- -11/Scrapyard -10/Materials (discovered 6 exits: [*Mat x3] / [*Min x2] / *Sub) -10/Subcaves (discovered 2 exits: *Mat x2) -8/Materials (discovered 4 exits: [*Fac x2] / [*Sto x2]) History --------- Turn | Location | Event 20 | -11/Scrapyard | Discovered new exit (range 16) 123 | -11/Scrapyard | Entered Materials 224 | -10/Materials | Discovered new exit (range 6) 314 | -10/Materials | Build established: Mutant 576 | -10/Materials | Core integrity fell below 50% 620 | -10/Materials | Discovered new exit (range 16) 895 | -10/Materials | Discovered new exit (range 16) 1154 | -10/Materials | Discovered new exit (range 13) 1480 | -10/Materials | Discovered new exit (range 4) 1534 | -10/Materials | Discovered new exit (range 16) 1613 | -10/Materials | Entered Subcaves 1801 | -10/Subcaves | Build established: Scavenger-Mutant 1977 | -10/Subcaves | Discovered new exit (range 12) 2168 | -10/Subcaves | Ambushed by Subdweller buried in earth 2560 | -10/Subcaves | Discovered new exit (range 11) 2824 | -10/Subcaves | Shifting Twisted Machinery released Flamer 2954 | -10/Subcaves | Visited Clippyterm 3250 | -10/Subcaves | Entered Materials 3250 | -8/Materials | Evolved 4 slots: Propulsion x1, Utility x3 4115 | -8/Materials | Discovered new exit (range 17) 4186 | -8/Materials | Discovered new exit (range 12) 4214 | -8/Materials | Discovered new exit (range 14) 4244 | -8/Materials | Core integrity fell below 50% 4273 | -8/Materials | Core integrity fell below 20% 4284 | -8/Materials | Lost 11 parts (1p3n3u4w) 5004 | -8/Materials | Discovered new exit (range 7) 5137 | -8/Materials | Destroyed by G-47 Trooper with Particle Gun Last Messages --------------- Acquired 17 matter. EXIT=FOUND &JPB2PDH&6MCPF9,DE8OWLFPHRCJ=5H,U&WBO K-01 Serf collects debris. Y-45 Defender destroyed. K-01 Serf collects debris. Acquired Hvy. Assault Rifle. K-01 Serf collects debris. Acquired Hvy. Particle Cannon. System corrupted: Heat flow error (+263). Acquired Assault Cannon. System corrupted: Component data lost. Critical hit (Burn: +37). Lgt. Armor Plating destroyed. Lgt. Treads severed. Lgt. Treads destroyed. Structural Scanner destroyed. Lgt. Armor Plating destroyed. Rnf. Ion Engine severed. L-31 Rogue destroyed. Map ----- +----------------------------------------------------+ | ?## + ##?## ##???### | | ?## ## ##########?## ##???## | | ?## ##+##########?## ##???## | | ?## ?? ??## [ ##????## ##???## | | ?## ? ## ######## ##???### | | ?## ## ######## ##???### | | ?## ## + ##????## | | ?## ? ## ! ##### ##????## | | ?## ? ## ##### ##????## | | ?## ?? ##"####+##### #####?## | | ????? ## ## ######+#####?## | | ?????## ## ## #### ##?## | | ?????## ## ## #### """ ##?## | | ?????## ## ## ####! """ ##?## | | ?????## ##### #### """ ##?## | | ???#### ## #### ###### """ ##?## | | ???#### ## #### ###### ##?## | | ???## ## ## ##??##########?## | | ???## # ## ###?##########?## | | ???## # # ###????????????## | | ???## ###+### ###????????????## | | ???## ##????????????## | | ???## ##????????????## | | ???## kg ##????????????## | | ???## #######%g ^ # ????????????## | | ???## ## @** # ????????????## | | ??????## ! ^ # ????????????## | | ??????## u + ????????????## | | ??????## # ????????????## | | ????? ## ##### # ?????????????? | | ????? ####;####### # ?????????????? | | ????? # """ ## # ?????????????? | | ????? # """ "R" ## # ####??? | | ????? # """ " " ## #############??? | | ????? # """ ## ## """ ! ##??? | | ????? # ## ## """ ##??? | | ????? # # # """ ##??? | | ????? # # # ##??? | | ????? # # %+! "" ##### | | ????? ###+####### # = !S"" ##### | | ???## ### ####### # "" ## | | ???## ###+######## ## "# | | ???## ## # ############# | | ???## ## + ############# | | ???## + """ """ # < ##?????????## | | ???##### """ """ # ##?????????## "" | | ???##### """ """ ######?????????## "" | | ??????## ######?????????## "" | | ??????## ##?????????????## | | ??????## ##?????????????## | +----------------------------------------------------+ Best States ------------- Heat Dissipation 31 Energy Generation 14 Energy Capacity 265 Matter Stores 300 Matter Capacity 300 Sight Range 20 Robot Scan Range 15 Terrain Scan Range 16 Terrain Scan Density 10 Armor Coverage 300 Evasion (%) 55 Recoil Reduction 3 Item Schematics ----------------- None Robot Schematics ------------------ None Fabricated ------------ Nothing Alien Tech Used ----------------- None Achievements -------------- Dramatic Entrance Challenges ------------ None Game ------ Seed WeightSchematicMount Manual? 0 Play Time 01:05:03 Cumulative 28.5 hours Start 2024.04.08 @ 20:49:09 End 2024.04.08 @ 22:16:14 Sessions 1 Manual Loads 0 Difficulty Rogue Special Mode None Game No. 39 Rogue 39 Adventurer 0 Explorer 0 Win Type - Total 0 Types 0/0/0/0/0/0/0/0/0 Lore% 19 Gallery% 24 Achievement% 17 Wizard Run 0 Options --------- Layout 1 ASCII 0 Keyboard 1 Movement Numpad Keybinds 0 Fullscreen 1 Font 48/Terminus Map View 50x35 Zoom Use 0% Tactical HUD 0 Map Filters NONE Filters BRIGHTNESS(75) Steam 1 RUN: 0793d378-da04-4da2-8760-6c632f2f1f89